fUSD/lending_fUSD_20250519
["ID","MTS","AMOUNT","RATE_DAILY","PERIOD"]
[361595733,1747629062988,-400.0,0.00013917,2]
[361595734,1747629062998,-1405.4,0.00013917,2]
[361595735,1747629063008,-4784.39,0.00013917,2]
[361595736,1747629063017,-489.85,0.00013917,2]
[361595737,1747629063027,-2537.87,0.00013917,2]
[361595738,1747629063037,-409.12790062,0.00013917,2]
[361595739,1747629063048,-11.05209938,0.00013917,2]
[361595740,1747629063058,-400.0,0.00013917,2]
[361595741,1747629063067,-6716.11,0.00013917,2]
[361595742,1747629063077,-1186.19100039,0.00013917,2]
[361595743,1747629063119,-9.96899961,0.00013917,2]
[361595744,1747629063128,-20.07100039,0.00013917,2]
[361595745,1747629063140,-379.92899961,0.00013917,2]
[361595746,1747629063150,-658.72620881,0.00013917,2]
[361595747,1747629063161,-174.30379119,0.00013917,2]
[361595748,1747629063173,-151.0,0.00013917,2]
[361595749,1747629063182,-400.0,0.00013917,2]
[361595750,1747629063191,-347.25670703,0.00013917,2]
[361595751,1747629063887,-400.0,0.00013698,2]
[361595752,1747629063897,-400.0,0.00013698,2]
[361595753,1747629063906,-400.0,0.00013698,2]
[361595754,1747629063916,-400.0,0.00013698,2]
[361595755,1747629063926,-439.82,0.00013698,2]
[361595756,1747629063935,-308.02,0.00013808,2]
[361595757,1747629063945,-400.0,0.00013808,2]
[361595758,1747629063954,-363.23,0.00013808,2]
[361595759,1747629063964,-432.56,0.00013808,2]
[361595760,1747629063974,-652.74329297,0.00013917,2]
[361595761,1747629063983,-3083.18692203,0.00013917,2]
[361595762,1747629064074,-400.0,0.00013698,2]
[361595763,1747629064084,-508.17307797,0.00013917,2]
[361595764,1747629064093,-1978.46,0.00013917,2]
[361595765,1747629064103,-897.77547877,0.00013917,2]
[361595766,1747629064119,-219.52452123,0.00013917,2]
[361595767,1747629064129,-1741.16,0.00013917,2]
[361595768,1747629064138,-400.0,0.00013917,2]
[361595769,1747629064147,-698.91,0.00013917,2]
[361595770,1747629064157,-1361.020332,0.00013917,2]
[361595771,1747629064167,-1597.15,0.00013917,2]
[361595772,1747629064177,-151.0,0.00013917,2]
[361595773,1747629064186,-517.85,0.00013917,2]
[361595774,1747629064196,-1361.020332,0.00013917,2]
[361595775,1747629064205,-615.63,0.00013917,2]
[361595776,1747629064215,-914.95,0.00013917,2]
[361595777,1747629064224,-1878.48,0.00013917,2]
[361595778,1747629064233,-1913.86,0.00013917,2]
[361595779,1747629064243,-400.0,0.00013917,2]
[361595780,1747629064252,-614.69,0.00013917,2]
[361595781,1747629064262,-646.8,0.00013917,2]
[361595782,1747629064271,-151.0,0.00013917,2]
[361595783,1747629064280,-1212.33,0.00013917,2]
[361595784,1747629064289,-871.425402,0.00013917,2]
[361595785,1747629064299,-1759.1,0.00013917,2]
[361595786,1747629064308,-554.27,0.00013917,2]
[361595787,1747629064318,-2299.0,0.00013917,2]
[361595788,1747629064328,-2407.67,0.00013917,2]
[361595789,1747629064340,-871.425402,0.00013917,2]
[361595790,1747629064349,-1130.41,0.00013917,2]
[361595791,1747629064359,-556.02,0.00013917,2]
[361595792,1747629064369,-151.0,0.00013917,2]
[361595793,1747629064378,-2420.88,0.00013917,2]
[361595794,1747629064388,-4957.18,0.00013917,2]
[361595795,1747629064398,-400.0,0.00013917,2]
[361595796,1747629064407,-625.88,0.00013917,2]
[361595797,1747629064418,-622.73,0.00013917,2]
[361595798,1747629064428,-691.79,0.00013917,2]
[361595799,1747629064438,-400.0,0.00013917,2]
[361595800,1747629064447,-3580.46,0.00013917,2]
[361595801,1747629064456,-2238.74,0.00013917,2]
[361595802,1747629064466,-453.66,0.00013917,2]
[361595803,1747629064475,-955.23,0.00013917,2]
[361595804,1747629064484,-2464.07,0.00013917,2]
[361595805,1747629064494,-400.0,0.00013917,2]
[361595806,1747629064503,-581.42,0.00013917,2]
[361595807,1747629064512,-400.0,0.00013917,2]
[361595808,1747629064522,-400.0,0.00013917,2]
[361595809,1747629064531,-400.0,0.00013917,2]
[361595810,1747629064541,-774.35,0.00013917,2]
[361595811,1747629064552,-151.0,0.00013917,2]
[361595812,1747629064562,-1917.12,0.00013917,2]
[361595813,1747629064572,-11045.81,0.00013917,2]
[361595814,1747629064582,-400.0,0.00013917,2]
[361595815,1747629064591,-688.71,0.00013917,2]
[361595816,1747629064601,-2287.2,0.00013917,2]
[361595817,1747629064612,-400.0,0.00013917,2]
[361595818,1747629064621,-400.0,0.00013917,2]
[361595819,1747629064631,-400.0,0.00013917,2]
[361595820,1747629064642,-452.01052086,0.00013917,2]
[361595821,1747629064652,-406.04,0.00013917,2]
[361595822,1747629064662,-1104.83,0.00013917,2]
[361595823,1747629064676,-418.46,0.00013917,2]
[361595824,1747629064686,-585.21,0.00013917,2]
[361595825,1747629064697,-1807.36,0.00013917,2]
[361595826,1747629064708,-151.0,0.00013917,2]
[361595827,1747629064717,-1165.37,0.00013917,2]
[361595828,1747629064727,-926.69,0.00013917,2]
[361595829,1747629064737,-400.0,0.00013917,2]
[361595830,1747629064747,-1500.75,0.00013917,2]
[361595831,1747629064757,-1529.38,0.00013917,2]
[361595832,1747629064766,-400.0,0.00013917,2]
[361595833,1747629064776,-411.15,0.00013917,2]
[361595834,1747629064785,-654.03,0.00013917,2]
[361595835,1747629064795,-400.0,0.00013917,2]
[361595836,1747629064805,-509.07,0.00013917,2]
[361595837,1747629064814,-780.86,0.00013917,2]
[361595838,1747629064824,-400.0,0.00013917,2]
[361595839,1747629064833,-196.112304,0.00013917,2]
[361595840,1747629064843,-227.897626,0.00013917,2]
[361595841,1747629064852,-400.0,0.00013917,2]
[361595842,1747629064861,-246.11,0.00013917,2]
[361595843,1747629064871,-400.0,0.00013917,2]
[361595844,1747629064880,-196.112304,0.00013917,2]
[361595845,1747629064889,-227.897626,0.00013917,2]
[361595846,1747629064898,-280.84,0.00013917,2]
[361595847,1747629064907,-151.0,0.00013917,2]
[361595848,1747629064916,-246.03,0.00013917,2]
[361595849,1747629064930,-4476.73388124,0.00013934,2]
[361595850,1747629064939,-151.0,0.00013941,2]
[361595851,1747629064948,-300.19706,0.00013941,2]
[361595852,1747629064959,-151.0,0.00013941,2]
[361595853,1747629064968,-151.0,0.00013941,2]
[361595854,1747629064978,-391.621709,0.00013941,2]
[361595855,1747629064988,-391.621709,0.00013941,2]
[361595856,1747629064997,-151.0,0.00013941,2]
[361595857,1747629065007,-151.0,0.00013941,2]
[361595858,1747629065018,-151.0,0.00013941,2]
[361595859,1747629065027,-269.372781,0.00013941,2]
[361595860,1747629065037,-151.0,0.00013941,2]
[361595861,1747629065047,-269.372781,0.00013941,2]
[361595862,1747629065056,-151.0,0.00013941,2]
[361595863,1747629065066,-1361.020332,0.00013941,2]
[361595864,1747629065076,-1361.020332,0.00013941,2]
[361595865,1747629065085,-871.425402,0.00013941,2]
[361595866,1747629065095,-871.425402,0.00013941,2]
[361595867,1747629065104,-226.40448,0.00013941,2]
[361595868,1747629065115,-227.897626,0.00013941,2]
[361595869,1747629065125,-227.897626,0.00013941,2]
[361595870,1747629065135,-1000.0,0.00013949,2]
[361595871,1747629065144,-4476.73388124,0.00013969,2]
[361595872,1747629065154,-151.0,0.00013969,2]
[361595873,1747629065163,-151.0,0.00013969,2]
[361595874,1747629065174,-196.112304,0.00013969,2]
[361595875,1747629065183,-196.112304,0.00013969,2]
[361595876,1747629065192,-700.0,0.00013972,2]
[361595877,1747629065202,-500.0,0.00013973,2]
[361595878,1747629065211,-500.0,0.00013973,2]
[361595879,1747629065221,-160.8438882,0.00013973,2]
[361595880,1747629065230,-501.36917103,0.00013973,2]
[361595881,1747629065239,-500.08071959,0.00013973,2]
[361595882,1747629065249,-500.0,0.00013973,2]
[361595883,1747629065258,-500.0,0.00013973,2]
[361595884,1747629065268,-500.0,0.00013973,2]
[361595885,1747629065277,-500.0,0.00013973,2]
[361595886,1747629065287,-500.0,0.00013973,2]
[361595887,1747629065295,-500.46476542,0.00013973,2]
[361595888,1747629065305,-500.0,0.00013973,2]
[361595889,1747629065315,-501.46863581,0.00013973,2]
[361595890,1747629065325,-500.65235627,0.00013973,2]
[361595891,1747629065337,-500.0,0.00013973,2]
[361595892,1747629065350,-503.24752947,0.00013973,2]
[361595893,1747629065362,-476.0,0.00013973,2]
[361595894,1747629065371,-151.0,0.00013989,2]
[361595895,1747629065381,-2997.7193861,0.00013989,2]
[361595896,1747629065391,-151.0,0.00013989,2]
[361595897,1747629065401,-151.0,0.00013989,2]
[361595898,1747629065410,-151.0,0.00013989,2]
[361595899,1747629065423,-158.432842,0.00013989,2]
[361595900,1747629065433,-39476.2587993,0.00013989,2]
[361595901,1747629065442,-151.0,0.00013989,2]
[361595902,1747629065452,-151.0,0.00013989,2]
[361595903,1747629065462,-752.300423,0.00013989,2]
[361595904,1747629065471,-752.300423,0.00013989,2]
[361595905,1747629065480,-953.8050201,0.00013989,2]
[361595906,1747629065490,-1509.3761956,0.00013989,2]
[361595907,1747629065500,-1211.5088455,0.00013989,2]
[361595908,1747629065509,-151.0,0.0001399,2]
[361595909,1747629065519,-151.0,0.0001399,2]
[361595910,1747629065529,-151.0,0.0001399,2]
[361595911,1747629065539,-231.442061,0.0001399,2]
[361595912,1747629065549,-231.442061,0.0001399,2]
[361595913,1747629065558,-151.658053,0.0001399,2]
[361595914,1747629065568,-152.70788,0.0001399,2]
[361595915,1747629065578,-151.0,0.0001399,2]
[361595916,1747629065588,-151.0,0.0001399,2]
[361595917,1747629065598,-151.0,0.0001399,2]
[361595918,1747629065608,-205.551294,0.0001399,2]
[361595919,1747629065618,-152.527521,0.0001399,2]
[361595920,1747629065628,-151.0,0.0001399,2]
[361595921,1747629065638,-172.439673,0.0001399,2]
[361595922,1747629065647,-172.439673,0.0001399,2]
[361595923,1747629065658,-2636.9200506,0.0001399,2]
[361595924,1747629065667,-2276.120715,0.0001399,2]
[361595925,1747629065680,-1915.3213795,0.0001399,2]
[361595926,1747629065690,-361.240812,0.0001399,2]
[361595927,1747629065699,-34724.9775389,0.0001399,2]
[361595928,1747629065709,-29973.6962785,0.0001399,2]
[361595929,1747629065718,-25222.4150181,0.0001399,2]
[361595930,1747629065727,-1133.5098554,0.0001399,2]
[361595931,1747629065737,-1313.2146906,0.0001399,2]
[361595932,1747629065747,-226.52806362,0.0001399,2]
[361595933,1747629065760,-1266.39146218,0.0001399,2]
[361595934,1747629065769,-1793.7552824,0.0001399,2]
[361595935,1747629065779,-2078.1343691,0.0001399,2]
[361595936,1747629065788,-2362.5134558,0.0001399,2]
[361595937,1747629065797,-1439.7672347,0.0001399,2]
[361595938,1747629065807,-1668.0256238,0.0001399,2]
[361595939,1747629065817,-1896.284013,0.0001399,2]
[361595940,1747629065826,-151.0,0.0001399,2]
[361595941,1747629065836,-151.0,0.0001399,2]
[361595942,1747629065845,-412.45011985,0.0001399,2]
[361595943,1747629065855,-412.45011985,0.0001399,2]
[361595944,1747629065865,-638.34,0.00013998,2]
[361595945,1747629065874,-1525.26810546,0.00013999,2]
[361595946,1747629065884,-151.0,0.00013999,2]
[361595947,1747629065893,-265.477324,0.00013999,2]
[361595948,1747629065903,-265.477324,0.00013999,2]
[361595949,1747629065913,-151.0,0.00013999,2]
[361595950,1747629065925,-151.0,0.00013999,2]
[361595951,1747629065934,-180.589711,0.00013999,2]
[361595952,1747629065944,-151.0,0.00013999,2]
[361595953,1747629065954,-151.0,0.00013999,2]
[361595954,1747629065963,-172.439673,0.00013999,2]
[361595955,1747629065973,-172.439673,0.00013999,2]
[361595956,1747629065983,-151.0,0.00013999,2]
[361595957,1747629065991,-244.452515,0.00013999,2]
[361595958,1747629066001,-151.0,0.00013999,2]
[361595959,1747629066010,-151.0,0.00013999,2]
[361595960,1747629066019,-151.0,0.00013999,2]
[361595961,1747629066228,-752.300423,0.00013999,2]
[361595962,1747629066239,-752.300423,0.00013999,2]
[361595963,1747629066249,-151.0,0.00013999,2]
[361595964,1747629066258,-391.621709,0.00013999,2]
[361595965,1747629066268,-391.621709,0.00013999,2]
[361595966,1747629066277,-151.0,0.00013999,2]
[361595967,1747629066286,-151.0,0.00013999,2]
[361595968,1747629066296,-628.09,0.00013999,2]
[361595969,1747629066305,-151.0,0.00013999,2]
[361595970,1747629066315,-184.74290435,0.00013999,2]
[361595971,1747629066323,-11460.06682541,0.00013999,2]
[361595972,1747629199141,503.074164,0.00025999,120]
[361595973,1747629443167,585.49,0.0001078,2]
[361595974,1747630034119,-226.69,0.00012382,2]
[361595975,1747630034140,-150.0,0.00012404,2]
[361595976,1747630034161,-1200.0,0.00012445,2]
[361595977,1747630034184,-877.15328185,0.00012446,2]
[361595978,1747630036094,-1009.574323,0.00012446,2]
[361595979,1747630043233,-580.94245948,0.00012446,2]
[361595980,1747630159078,-965.37,0.0001235,2]
[361595981,1747630159099,-112.63,0.00012445,2]
[361595982,1747630173344,-187.37,0.00012445,2]
[361595983,1747630173366,-913.69360722,0.00012446,2]
[361595998,1747630231860,-939.44690143,0.00012373,2]
[361595999,1747630236574,-2249.999995,0.00012373,2]
[361596000,1747630236631,-3335.04310357,0.00012373,2]
[361596001,1747630236640,-1200.0,0.00012445,2]
[361596002,1747630236650,-300.0,0.00012445,2]
[361596003,1747630236658,-13911.26632845,0.00012446,2]
[361596004,1747630236667,-1000.0,0.00012483,2]
[361596005,1747630236676,-894.06736798,0.00012582,2]
[361596006,1747630236707,-1348.16384016,0.00012582,2]
[361596007,1747630236718,-899.38133916,0.00012582,2]
[361596008,1747630236729,-6814.1274527,0.00012582,2]
[361596009,1747630236738,-1721.51,0.00012718,2]
[361596010,1747630236747,-171.1,0.00012719,2]
[361596011,1747630236756,-171.1,0.00012732,2]
[361596012,1747630236765,-190.27,0.00012739,2]
[361596013,1747630236779,-175.9,0.00012739,2]
[361596014,1747630236788,-202.0,0.00012741,2]
[361596015,1747630236798,-171.1,0.00012745,2]
[361596016,1747630236806,-171.1,0.00012757,2]
[361596017,1747630236815,-171.1,0.0001277,2]
[361596018,1747630236824,-171.1,0.00012783,2]
[361596019,1747630236833,-172.5925473,0.00012893,2]
[361596020,1747630236866,-1001.93614758,0.00012893,2]
[361596021,1747630236877,-1714.41628132,0.00012893,2]
[361596022,1747630236888,-5931.99999995,0.00012893,2]
[361596083,1747630237869,-853.30154816,0.00012893,2]
[361596084,1747630237929,-819.09999995,0.00012893,2]
[361596085,1747630237975,-4307.1193902,0.00012893,2]
[361596086,1747630237989,-1244.59408554,0.00012893,2]
[361596087,1747630237999,-797.73,0.00012994,2]
[361596088,1747630238011,-150.0,0.00012999,2]
[361596089,1747630238021,-153.51941446,0.00013,2]
[361596090,1747630238079,-592.58973189,0.00013,2]
[361596091,1747630238092,-1113.25646616,0.00013,2]
[361596092,1747630238112,-4203.63438749,0.00013,2]
[361596093,1747630238125,-170.07,0.00013,2]
[361596094,1747630238136,-804.92,0.00013,2]
[361596095,1747630238146,-585.49,0.00013044,2]
[361596096,1747630238158,-746.01952762,0.0001322,2]
[361596097,1747630238171,-200.0,0.00013246,2]
[361596098,1747630238182,-207.4,0.00013258,2]
[361596099,1747630238192,-155.0,0.00013258,2]
[361596100,1747630238202,-668.65185757,0.00013258,2]
[361596101,1747630238211,-668.65185757,0.00013258,2]
[361596102,1747630238221,-151.0,0.00013258,2]
[361596103,1747630238231,-655.04,0.00013498,2]
[361596104,1747630238242,-300.0,0.000135,2]
[361596106,1747630238253,-500.0,0.00013596,2]
[361596108,1747630238263,-500.0,0.00013596,2]
[361596109,1747630238274,-500.0,0.00013596,2]
[361596111,1747630238284,-500.0,0.00013596,2]
[361596113,1747630238294,-500.0,0.00013596,2]
[361596115,1747630238304,-639.15442804,0.00013596,2]
[361596117,1747630238315,-500.0,0.00013596,2]
[361596120,1747630238330,-500.0,0.00013596,2]
[361596122,1747630238340,-500.0,0.00013596,2]
[361596124,1747630238350,-500.0,0.00013596,2]
[361596126,1747630238361,-500.0,0.00013596,2]
[361596128,1747630238372,-500.0,0.00013596,2]
[361596130,1747630238382,-500.0,0.00013596,2]
[361596132,1747630238392,-500.0,0.00013596,2]
[361596133,1747630238402,-500.0,0.00013596,2]
[361596136,1747630238414,-500.0,0.00013596,2]
[361596138,1747630238424,-500.0,0.00013596,2]
[361596140,1747630238435,-500.0,0.00013596,2]
[361596141,1747630238445,-500.0,0.00013596,2]
[361596143,1747630238455,-500.0,0.00013596,2]
[361596145,1747630238466,-500.0,0.00013596,2]
[361596147,1747630238476,-500.0,0.00013596,2]
[361596149,1747630238486,-500.0,0.00013596,2]
[361596151,1747630238496,-500.0,0.00013596,2]
[361596153,1747630238507,-500.0,0.00013596,2]
[361596155,1747630238517,-500.0,0.00013596,2]
[361596157,1747630238527,-500.0,0.00013596,2]
[361596159,1747630238537,-500.0,0.00013596,2]
[361596161,1747630238548,-500.0,0.00013596,2]
[361596163,1747630238560,-500.0,0.00013596,2]
[361596165,1747630238570,-500.0,0.00013596,2]
[361596167,1747630238581,-500.0,0.00013596,2]
[361596169,1747630238591,-500.0,0.00013596,2]
[361596171,1747630238601,-500.0,0.00013596,2]
[361596173,1747630238612,-500.0,0.00013596,2]
[361596175,1747630238624,-500.0,0.00013596,2]
[361596177,1747630238635,-339.87578852,0.00013596,2]
[361596179,1747630238645,-500.0,0.00013596,2]
[361596181,1747630238655,-500.0,0.00013596,2]
[361596183,1747630238666,-500.0,0.00013596,2]
[361596185,1747630238676,-500.0,0.00013596,2]
[361596187,1747630238687,-500.0,0.00013596,2]
[361596189,1747630238698,-500.0,0.00013596,2]
[361596191,1747630238709,-500.0,0.00013596,2]
[361596193,1747630238720,-208.69565217,0.00013597,4]
[361596195,1747630238730,-208.69565217,0.00013597,4]
[361596197,1747630238740,-1658.49030886,0.00013598,2]
[361596199,1747630238751,-172.45041799,0.00013598,2]
[361596201,1747630238761,-1352.7542,0.00013598,2]
[361596203,1747630238771,-4578.8999,0.00013598,2]
[361596205,1747630238782,-1658.49030877,0.00013632,2]
[361596207,1747630238792,-1658.49030877,0.00013665,2]
[361596209,1747630238803,-500.0,0.00013673,2]
[361596211,1747630238813,-508.08214648,0.00013673,2]
[361596213,1747630238823,-172.45041795,0.00013674,2]
[361596215,1747630238834,-1680.0,0.00013689,2]
[361596217,1747630238844,-431.08115336,0.00013691,2]
[361596219,1747630238855,-156.64,0.00013697,2]
[361596221,1747630238867,-922.344954,0.00013698,2]
[361596223,1747630238878,-400.0,0.00013698,2]
[361596225,1747630238889,-3205.30973,0.00013698,2]
[361596227,1747630238900,-1030.419309,0.00013698,2]
[361596229,1747630238910,-233.72765779,0.00013698,2]
[361596231,1747630238921,-400.0,0.00013698,2]
[361596233,1747630238932,-400.0,0.00013698,2]
[361596235,1747630238943,-400.0,0.00013698,2]
[361596237,1747630238953,-400.0,0.00013698,2]
[361596239,1747630238963,-400.0,0.00013698,2]
[361596241,1747630238974,-419.06,0.00013698,2]
[361596243,1747630238984,-400.0,0.00013698,2]
[361596245,1747630238995,-400.0,0.00013698,2]
[361596247,1747630239005,-400.0,0.00013698,2]
[361596249,1747630239016,-1000.0,0.00013698,2]
[361596251,1747630239026,-400.0,0.00013698,2]
[361596253,1747630239037,-400.0,0.00013698,2]
[361596255,1747630239051,-400.0,0.00013698,2]
[361596257,1747630239062,-400.0,0.00013698,2]
[361596259,1747630239072,-400.0,0.00013698,2]
[361596261,1747630239082,-272.77525674,0.00013698,2]
[361596263,1747630239094,-508.05,0.00013698,2]
[361596265,1747630239104,-612.01,0.00013698,2]
[361596267,1747630239115,-400.0,0.00013698,2]
[361596269,1747630239127,-400.0,0.00013698,2]
[361596270,1747630239137,-400.0,0.00013698,2]
[361596271,1747630239148,-557.85,0.00013698,2]
[361596272,1747630239158,-459.93,0.00013698,2]
[361596273,1747630239168,-400.0,0.00013698,2]
[361596274,1747630239180,-401.54,0.00013698,2]
[361596275,1747630239190,-400.0,0.00013698,2]
[361596276,1747630239200,-400.0,0.00013698,2]
[361596277,1747630239210,-524.98,0.00013698,2]
[361596278,1747630239221,-400.0,0.00013698,2]
[361596279,1747630239231,-400.0,0.00013698,2]
[361596280,1747630239241,-302.47264962,0.00013698,2]
[361596281,1747630239251,-400.0,0.00013698,2]
[361596282,1747630239262,-400.0,0.00013698,2]
[361596283,1747630239272,-423.4,0.00013698,2]
[361596284,1747630239282,-400.0,0.00013698,2]
[361596285,1747630239293,-400.0,0.00013698,2]
[361596286,1747630239303,-400.0,0.00013698,2]
[361596287,1747630239313,-400.0,0.00013698,2]
[361596288,1747630239323,-400.0,0.00013698,2]
[361596289,1747630239333,-400.0,0.00013698,2]
[361596290,1747630239344,-400.0,0.00013698,2]
[361596291,1747630239355,-493.65,0.00013698,2]
[361596292,1747630239365,-400.0,0.00013698,2]
[361596293,1747630239380,-400.0,0.00013698,2]
[361596294,1747630239391,-400.0,0.00013698,2]
[361596296,1747630239401,-400.0,0.00013698,2]
[361596297,1747630239412,-400.0,0.00013698,2]
[361596298,1747630239422,-400.0,0.00013698,2]
[361596299,1747630239432,-400.0,0.00013698,2]
[361596300,1747630239442,-400.0,0.00013698,2]
[361596301,1747630239453,-198.96779388,0.00013698,2]
[361596302,1747630239464,-400.0,0.00013698,2]
[361596303,1747630239474,-400.0,0.00013698,2]
[361596304,1747630239484,-400.0,0.00013698,2]
[361596305,1747630239494,-400.0,0.00013698,2]
[361596306,1747630239504,-400.0,0.00013698,2]
[361596307,1747630239515,-557.53,0.00013698,2]
[361596308,1747630239526,-187.81240899,0.00013698,2]
[361596309,1747630239537,-400.0,0.00013698,2]
[361596310,1747630239547,-412.41,0.00013698,2]
[361596311,1747630239558,-400.0,0.00013698,2]
[361596312,1747630239569,-400.0,0.00013698,2]
[361596313,1747630239581,-375.21025618,0.00013698,2]
[361596314,1747630239592,-632.1,0.00013698,2]
[361596315,1747630239602,-400.0,0.00013698,2]
[361596316,1747630239613,-635.15,0.00013698,2]
[361596317,1747630239626,-518.28,0.00013698,2]
[361596318,1747630239636,-747.33,0.00013698,2]
[361596319,1747630239646,-602.86,0.00013698,2]
[361596320,1747630239656,-400.0,0.00013698,2]
[361596321,1747630239666,-284.20767047,0.00013698,2]
[361596322,1747630239684,-115.79232953,0.00013698,2]
[361596323,1747630239697,-188.1313174,0.00013698,2]
[361596324,1747630239710,-211.8686826,0.00013698,2]
[361596325,1747630239720,-170.98385644,0.00013698,2]
[361596326,1747630239732,-229.01614356,0.00013698,2]
[361596328,1747630239743,-427.25,0.00013698,2]
[361596329,1747630239753,-400.0,0.00013698,2]
[361596330,1747630239763,-63.39433104,0.00013698,2]
[361596331,1747630239776,-322.74734035,0.00013698,2]
[361596332,1747630239789,-74.35832861,0.00013698,2]
[361596333,1747630239800,-400.0,0.00013698,2]
[361596334,1747630239810,-658.43172919,0.00013698,2]
[361596336,1747630240324,-306.62827081,0.00013698,2]
[361596337,1747630240334,-830.58,0.00013698,2]
[361596338,1747630240344,-400.0,0.00013698,2]
[361596339,1747630240354,-541.44,0.00013698,2]
[361596340,1747630240364,-400.0,0.00013698,2]
[361596341,1747630240375,-400.0,0.00013698,2]
[361596342,1747630240386,-400.0,0.00013698,2]
[361596344,1747630240397,-400.0,0.00013698,2]
[361596346,1747630240407,-583.11723719,0.00013698,2]
[361596352,1747630240458,-44.12276281,0.00013698,2]
[361596353,1747630240467,-400.0,0.00013698,2]
[361596354,1747630240477,-400.0,0.00013698,2]
[361596355,1747630240487,-400.0,0.00013698,2]
[361596356,1747630240497,-628.37,0.00013698,2]
[361596357,1747630240507,-400.0,0.00013698,2]
[361596358,1747630240517,-400.0,0.00013698,2]
[361596359,1747630240527,-400.0,0.00013698,2]
[361596360,1747630240537,-807.35,0.00013698,2]
[361596361,1747630240547,-519.71,0.00013698,2]
[361596362,1747630240556,-460.81,0.00013698,2]
[361596363,1747630240566,-400.0,0.00013698,2]
[361596364,1747630240576,-400.0,0.00013698,2]
[361596365,1747630240586,-1117.18,0.00013698,2]
[361596366,1747630240596,-400.0,0.00013698,2]
[361596367,1747630240606,-400.0,0.00013698,2]
[361596368,1747630240615,-400.0,0.00013698,2]
[361596369,1747630240627,-515.17,0.00013698,2]
[361596370,1747630240637,-400.0,0.00013698,2]
[361596371,1747630240647,-400.0,0.00013698,2]
[361596372,1747630240657,-467.45,0.00013698,2]
[361596373,1747630240667,-400.0,0.00013698,2]
[361596374,1747630240678,-876.36,0.00013698,2]
[361596375,1747630240687,-400.0,0.00013698,2]
[361596376,1747630240697,-400.0,0.00013698,2]
[361596377,1747630240707,-540.1,0.00013698,2]
[361596378,1747630240717,-400.0,0.00013698,2]
[361596379,1747630240728,-400.0,0.00013698,2]
[361596380,1747630240737,-1069.26,0.00013698,2]
[361596381,1747630240753,-400.0,0.00013698,2]
[361596382,1747630240763,-423.95,0.00013698,2]
[361596383,1747630240773,-573.81,0.00013698,2]
[361596384,1747630240783,-400.0,0.00013698,2]
[361596385,1747630240793,-613.87,0.00013698,2]
[361596386,1747630240803,-418.22,0.00013698,2]
[361596387,1747630240812,-400.0,0.00013698,2]
[361596388,1747630240822,-511.43,0.00013698,2]
[361596389,1747630240832,-401.82,0.00013698,2]
[361596390,1747630240842,-400.0,0.00013698,2]
[361596391,1747630240852,-754.48,0.00013698,2]
[361596392,1747630240862,-400.0,0.00013698,2]
[361596393,1747630240873,-400.0,0.00013698,2]
[361596394,1747630240883,-698.67,0.00013698,2]
[361596395,1747630240894,-595.05,0.00013698,2]
[361596396,1747630240904,-726.2,0.00013698,2]
[361596397,1747630240915,-630.53,0.00013698,2]
[361596398,1747630240926,-400.0,0.00013698,2]